bitfinex-derivatives/quotes_ETHF0:USTF0_20241026
["timestamp","ask_amount","ask_price","bid_price","bid_amount"]
[1729938057438,0.843,2474.3,2474.1,1.7355018]
[1729938057638,3.2078,2474.3,2474.1,1.7355018]
[1729938061037,4.5223018,2474.3,2474.1,1.7355018]
[1729938063536,4.9269218,2474.3,2474.1,1.7355018]
[1729938064439,4.5223018,2474.3,2474.1,1.7355018]
[1729938064842,1.3145018,2474.3,2474.1,1.7355018]
[1729938065049,4.5223018,2474.3,2474.1,1.7355018]
[1729938065736,4.5223018,2474.3,2474.2,0.8575]
[1729938065946,3.2078,2474.3,2474.2,0.8575]
[1729938066541,3.2078,2474.3,2474.2,2.1720018]
[1729938066744,0.40457,2474.6,2474.2,6.6182218]
[1729938066942,1.3145018,2474.4,2474.3,1.3145018]
[1729938070047,1.7575018,2474.5,2474.3,1.3145018]
[1729938070243,2.1620818,2474.5,2474.4,1.3145018]
[1729938070636,1.7575018,2474.5,2474.4,1.3145018]
[1729938070841,4.0508,2474.6,2474.4,1.3145018]
[1729938070842,5.7698718,2474.6,2474.4,1.3145018]
[1729938071343,5.7698718,2474.6,2474.5,0.43]
[1729938071849,5.3653018,2474.6,2474.5,0.43]
[1729938074944,4.0508,2474.6,2474.5,1.7445018]
[1729938075142,4.0508,2474.6,2474.5,2.6046018]
[1729938077051,0.843,2474.6,2474.5,2.6046018]
[1729938077250,4.0508,2474.6,2474.5,2.6046018]
[1729938077949,0.843,2474.6,2474.5,2.6046018]
[1729938078147,4.0508,2474.6,2474.5,2.6046018]
[1729938078961,0.843,2474.6,2474.5,2.6046018]
[1729938081948,5.7698718,2474.6,2474.5,2.6046018]
[1729938082143,5.7698718,2474.6,2474.5,1.2901]
[1729938082350,5.3653018,2474.6,2474.5,1.2901]
[1729938082754,4.5223018,2474.6,2474.5,1.2901]
[1729938084061,4.5223018,2474.6,2474.5,0.43]
[1729938084353,4.9375018,2474.6,2474.5,0.43]
[1729938086051,1.7297018,2474.6,2474.5,0.43]
[1729938086451,4.9375018,2474.6,2474.5,0.43]
[1729938088551,3.623,2474.6,2474.5,0.43]
[1729938088754,4.9375018,2474.6,2474.5,0.43]
[1729938089051,8.9783018,2474.6,2474.1,0.8526]
[1729938089252,4.9269218,2474.3,2474.1,1.281]
[1729938089452,2.9975318,2474.2,2474.1,0.4284]
[1729938089654,2.5929018,2474.2,2474.1,0.4284]
[1729938089963,1.2784,2474.2,2474.1,1.7429018]
[1729938090458,2.9975318,2474.2,2474.1,1.7429018]
[1729938090763,2.5929018,2474.2,2474.1,1.7429018]
[1729938091562,1.2784,2474.2,2474.1,1.7429018]
[1729938092363,2.5929018,2474.2,2474.1,1.7429018]
[1729938093453,2.9975318,2474.2,2474.1,1.3145018]
[1729938096363,2.5929018,2474.2,2474.1,1.3145018]
[1729938096559,2.9975318,2474.2,2474.1,1.3145018]
[1729938097160,2.5929018,2474.2,2474.1,1.3145018]
[1729938097562,2.9975318,2474.2,2474.1,1.3145018]
[1729938097961,2.5929018,2474.2,2474.1,1.3145018]
[1729938098557,2.9975318,2474.2,2474.1,1.3145018]
[1729938098857,2.5929018,2474.2,2474.1,1.3145018]
[1729938099858,1.2784,2474.2,2474.1,1.3145018]
[1729938100865,0.4466,2474.2,2474.1,1.3145018]
[1729938104763,6.2088018,2474.3,2474.1,1.3145018]
[1729938105167,6.6554018,2474.3,2474.1,1.3145018]
[1729938105766,6.6554018,2474.3,2474.2,0.4228]
[1729938106570,3.4476018,2474.3,2474.2,0.4228]
[1729938107371,3.8522118,2474.3,2474.2,0.4228]
[1729938108966,7.0600118,2474.3,2474.2,0.4228]
[1729938109973,6.6554018,2474.3,2474.2,0.4228]
[1729938110468,3.4476018,2474.3,2474.2,0.4228]
[1729938111568,3.8522118,2474.3,2474.2,0.4228]
[1729938113967,7.0600118,2474.3,2474.2,0.4228]
[1729938114268,4.0498,2474.3,2474.2,1.7373018]
[1729938114667,4.45441,2474.3,2474.2,1.7373018]
[1729938115972,4.45441,2474.3,2474.2,0.4228]
[1729938119573,1.24661,2474.3,2474.2,0.4228]
[1729938119968,4.45441,2474.3,2474.2,0.4228]
[1729938120175,5.7689118,2474.3,2474.2,0.4228]
[1729938120476,7.0515118,2474.3,2474.2,0.4228]
[1729938121462,6.2153018,2474.3,2474.2,0.4228]
[1729938121661,6.6199118,2474.3,2474.2,0.4228]
[1729938121866,0.40463,2474.2,2474.0,1.3145018]
[1729938122067,0.84973,2474.2,2474.0,1.3145018]
[1729938122569,0.4451,2474.2,2474.0,1.3145018]
[1729938124369,0.4451,2474.2,2473.9,0.4513]
[1729938124771,0.40465,2474.1,2473.9,0.4513]
[1729938125569,1.7191618,2474.0,2473.9,0.4513]
[1729938126975,1.3145018,2474.0,2473.9,0.4513]
[1729938127568,1.7191618,2474.1,2473.9,1.7658018]
[1729938127771,1.7191618,2474.1,2474.0,1.3145018]
[1729938127975,6.6199218,2474.3,2474.0,1.3145018]
[1729938128174,6.6199218,2474.3,2474.1,0.4397]
[1729938128677,6.6199218,2474.3,2474.2,0.4105]
[1729938129672,3.2078,2474.3,2474.2,5.7666018]
[1729938129878,0.4218,2474.6,2474.3,0.40461]
[1729938129879,0.842,2474.6,2474.3,0.40461]
[1729938130075,0.842,2474.6,2474.5,1.3145018]
[1729938130675,4.5223018,2474.7,2474.5,1.3145018]
[1729938130881,4.5223018,2474.7,2474.2,0.8294]
[1729938130882,4.5223018,2474.7,2474.6,1.7479018]
[1729938131278,4.5223018,2474.7,2474.6,0.4334]
[1729938131586,4.5223018,2474.7,2474.6,1.7479018]
[1729938133479,3.2078,2474.7,2474.6,1.7479018]
[1729938135172,4.5223018,2474.7,2474.6,1.7479018]
[1729938136477,3.2078,2474.7,2474.6,2.1524718]
[1729938136684,6.1792018,2475.0,2474.6,2.1524718]
[1729938136877,1.3145018,2474.9,2474.8,1.3145018]
[1729938138284,3.2078,2475.0,2474.8,1.3145018]
[1729938138485,3.2078,2475.0,2474.9,1.3145018]
[1729938138788,4.5223018,2475.0,2474.8,1.7467018]
[1729938146280,3.2078,2475.0,2474.9,1.3145018]
[1729938146481,3.6448,2475.3,2474.9,5.7598118]
[1729938146684,3.6448,2475.3,2475.2,1.3145018]
[1729938147286,3.2078,2475.3,2475.2,1.3145018]
[1729938150091,4.5223018,2475.3,2475.2,1.3145018]
[1729938151399,0.40448,2475.1,2475.0,1.3145018]
[1729938151986,0.81878,2475.1,2475.0,1.3145018]
[1729938153198,0.4143,2475.1,2475.0,1.3145018]
[1729938153698,0.81878,2475.1,2475.0,1.3145018]
[1729938154092,0.4143,2475.1,2475.0,1.3145018]
[1729938156603,0.4089,2475.2,2475.0,1.3145018]
[1729938156899,0.81337,2475.2,2475.1,1.3145018]
[1729938157403,0.4089,2475.2,2475.1,1.3145018]
[1729938158091,0.81337,2475.2,2475.1,1.3145018]
[1729938158504,0.4089,2475.2,2475.1,1.3145018]
[1729938159194,0.81337,2475.2,2475.1,1.3145018]
[1729938159397,0.4089,2475.2,2475.1,1.3145018]
[1729938160195,0.81337,2475.2,2475.1,1.3145018]
[1729938160393,4.05756,2475.3,2475.1,1.3145018]
[1729938160700,4.46906,2475.3,2475.1,1.3145018]
[1729938161004,5.7835618,2475.3,2475.1,1.3145018]
[1729938162504,4.0646,2475.3,2475.2,1.3145018]
[1729938163294,3.6531,2475.3,2475.2,1.3145018]
[1729938163594,3.2078,2475.3,2475.2,1.3145018]
[1729938163793,3.2078,2475.3,2475.2,1.7189718]
[1729938164703,3.2078,2475.3,2475.2,1.3145018]
[1729938165203,0.4468,2475.4,2475.2,1.3145018]
[1729938165404,0.4468,2475.4,2475.3,1.3145018]
[1729938166304,0.4468,2475.4,2475.3,1.7317018]
[1729938166305,0.85123,2475.4,2475.3,1.7317018]
[1729938166601,0.4468,2475.4,2475.3,1.7317018]
[1729938167701,0.85123,2475.4,2475.3,1.7317018]
[1729938168394,0.4468,2475.4,2475.3,1.7317018]
[1729938169203,0.85123,2475.4,2475.3,1.7317018]
[1729938170497,0.4468,2475.4,2475.3,1.7317018]
[1729938170905,0.85123,2475.4,2475.3,1.7317018]
[1729938173506,0.4468,2475.4,2475.3,1.7317018]
[1729938173711,0.85123,2475.4,2475.3,1.7317018]
[1729938174005,0.4468,2475.4,2475.3,1.7317018]
[1729938174804,0.85123,2475.4,2475.3,1.7317018]
[1729938175301,0.85123,2475.4,2475.3,0.4172]
[1729938175609,0.8947,2475.4,2475.3,1.7317018]
[1729938177108,1.29913,2475.4,2475.3,1.7317018]
[1729938179008,0.8947,2475.4,2475.3,1.7317018]
[1729938180810,1.29913,2475.4,2475.3,1.7317018]
[1729938181108,0.8947,2475.4,2475.3,1.7317018]
[1729938184807,3.2078,2475.4,2475.3,1.7317018]
[1729938187811,0.40441,2475.6,2475.3,5.7717018]
[1729938188009,0.40441,2475.6,2475.5,1.3145018]
[1729938188203,4.5223018,2475.7,2475.5,1.3145018]
[1729938188408,4.9267018,2475.7,2475.5,1.3145018]
[1729938188809,4.5223018,2475.7,2475.5,1.3145018]
[1729938189008,0.4044,2475.6,2475.5,1.3145018]
[1729938189713,1.7189018,2475.6,2475.4,1.7424018]
[1729938189904,2.1446018,2475.6,2475.4,1.7424018]
[1729938190713,0.40442,2475.5,2475.4,1.7424018]
[1729938191214,2.1446118,2475.6,2475.4,1.7424018]
[1729938191608,1.7189218,2475.5,2475.4,0.4279]
[1729938191813,2.5822218,2475.5,2475.3,1.7317018]
[1729938192117,2.5822218,2475.5,2475.3,0.4172]
[1729938192916,3.2078,2475.4,2475.3,0.4172]
[1729938193311,4.5223018,2475.4,2475.3,0.4172]
[1729938193510,4.9267318,2475.4,2475.3,0.4172]
[1729938194610,4.9267318,2475.4,2475.1,2.1602018]
[1729938194611,0.40447,2475.3,2475.1,2.1602018]
[1729938194814,0.4234,2475.2,2475.1,2.1602018]
[1729938196620,4.9267418,2475.4,2475.1,2.1602018]
[1729938196822,3.61224,2475.4,2475.1,2.1602018]
[1729938197018,4.03964,2475.4,2475.1,2.1602018]
[1729938197214,4.03964,2475.4,2475.2,1.3145018]
[1729938197627,3.6352,2475.4,2475.3,0.4285]
[1729938198126,3.6352,2475.4,2475.1,2.1602018]
[1729938198323,0.40447,2475.3,2475.1,2.5887018]
[1729938199814,4.03964,2475.4,2475.1,2.5887018]
[1729938200017,3.6352,2475.4,2475.1,2.5887018]
[1729938200215,0.40446,2475.3,2475.1,2.5887018]
[1729938200618,4.03964,2475.4,2475.1,2.5887018]
[1729938202325,0.40445,2475.3,2475.1,2.5887018]
[1729938202528,3.6352,2475.4,2475.1,2.5887018]
[1729938202715,4.03964,2475.4,2475.1,2.5887018]
[1729938203730,5.3541418,2475.4,2475.1,1.3145018]
[1729938204127,1.3145018,2475.2,2475.0,1.3145018]
[1729938204323,1.3145018,2475.2,2475.1,0.12648273]
[1729938204628,1.7189718,2475.2,2475.1,0.12648273]
[1729938204931,0.4045,2475.1,2474.9,0.4116]
[1729938205131,0.4315,2475.0,2474.9,0.4116]
[1729938209222,0.4315,2475.0,2474.9,1.7261018]
[1729938210332,0.4315,2475.0,2474.9,1.3145018]
[1729938211721,0.4315,2475.0,2474.7,1.7336018]
[1729938211722,1.7460018,2475.0,2474.7,1.7336018]
[1729938211921,1.7190318,2474.8,2474.7,0.4191]
[1729938212123,1.7190318,2474.8,2474.6,1.3145018]
[1729938212331,2.1383618,2474.7,2474.5,1.7254018]
[1729938212524,0.4367,2474.6,2474.5,1.7254018]
[1729938212724,0.8496,2474.6,2474.5,1.7254018]
[1729938213035,0.8496,2474.6,2474.5,1.3145018]
[1729938213935,0.8496,2474.6,2474.4,1.3145018]
[1729938213936,2.1641018,2474.6,2474.4,1.3145018]
[1729938214125,0.8496,2474.6,2474.5,1.3145018]
[1729938214524,0.4367,2474.6,2474.5,1.3145018]
[1729938221528,0.4193,2474.7,2474.5,1.3145018]
[1729938221738,5.7668418,2474.8,2474.6,1.3145018]
[1729938222135,5.7668418,2474.8,2474.7,0.4235]
[1729938222539,9.8076418,2474.8,2474.7,0.4235]
[1729938223542,6.5998418,2474.8,2474.7,0.4235]
[1729938224243,9.8076418,2474.8,2474.7,0.4235]
[1729938224443,0.40456,2474.7,2474.5,0.4249]
[1729938224634,1.68096,2474.7,2474.6,1.3145018]
[1729938225034,1.2764,2474.7,2474.6,1.3145018]
[1729938225243,5.3623018,2474.8,2474.6,1.3145018]
[1729938225442,5.3623018,2474.8,2474.7,1.3145018]
[1729938225839,9.4031018,2474.8,2474.7,1.3145018]
[1729938226249,9.8076318,2474.8,2474.7,1.3145018]
[1729938226437,3.2078,2474.8,2474.7,1.3145018]
[1729938229049,4.9268218,2474.9,2474.7,1.3145018]
[1729938229440,4.9268218,2474.9,2474.8,0.4423]
[1729938230047,8.9676218,2474.9,2474.8,0.4423]
[1729938230343,9.8485218,2474.9,2474.8,0.4423]
[1729938231147,5.8077218,2474.9,2474.8,0.4423]
[1729938236148,5.81791128,2474.9,2474.8,0.4423]
[1729938237146,6.24171128,2474.9,2474.8,0.4423]
[1729938243046,5.83719128,2474.9,2474.6,1.7353018]
[1729938243252,1.72923128,2474.8,2474.6,1.7353018]
[1729938244156,0.01018948,2474.7,2474.6,1.7353018]
[1729938253366,0.01018948,2474.7,2474.6,7.4951736]
[1729938253563,0.40446,2475.3,2474.8,0.40453]
[1729938253767,4.9267418,2475.4,2475.0,1.3145018]
[1729938253963,4.9267418,2475.4,2475.1,0.433]
[1729938254160,5.3616418,2475.4,2475.1,0.433]
[1729938254361,3.2078,2475.4,2475.3,1.3145018]
[1729938254565,4.5223018,2475.4,2475.2,1.3145018]
[1729938254961,4.9267418,2475.4,2475.1,1.7475018]
[1729938255172,1.3145018,2475.3,2475.1,1.7475018]
[1729938256466,4.9354018,2475.4,2475.1,1.7475018]
[1729938256677,4.9354018,2475.4,2475.2,1.7229018]
[1729938257367,1.3145018,2475.3,2475.2,1.7229018]
[1729938259669,1.3145018,2475.3,2475.1,0.433]
[1729938259974,1.3145018,2475.3,2475.0,0.4324]
[1729938259975,1.3145018,2475.2,2475.0,0.4324]
[1729938260176,1.3145018,2475.2,2475.0,1.7469018]
[1729938261874,0.4174,2475.3,2475.1,1.3145018]
[1729938262081,1.3145018,2475.2,2475.1,1.3145018]
[1729938265689,3.2078,2475.4,2475.1,5.3545018]
[1729938265873,3.2078,2475.4,2475.0,0.4324]
[1729938265874,3.2078,2475.4,2475.3,1.3145018]
[1729938266272,3.2078,2475.4,2475.3,2.5519018]
[1729938266577,3.2078,2475.4,2475.3,2.9563518]
[1729938266777,3.2078,2475.4,2475.3,2.5519018]
[1729938267677,1.3145018,2475.6,2475.3,2.5519018]
[1729938268679,1.3145018,2475.6,2475.5,1.3145018]
[1729938270081,0.8822,2475.6,2475.5,1.3145018]
[1729938270275,2.1967018,2475.6,2475.5,1.3145018]
[1729938270974,0.8822,2475.6,2475.5,1.3145018]
[1729938271280,2.1967018,2475.6,2475.5,1.3145018]
[1729938271669,0.8822,2475.6,2475.5,1.3145018]
[1729938272679,0.4397,2475.6,2475.5,1.3145018]
[1729938276186,4.9465018,2475.7,2475.5,1.3145018]
[1729938276693,4.9465018,2475.7,2475.6,0.4089]
[1729938277189,4.5223018,2475.7,2475.6,0.4089]
[1729938277384,4.5223018,2475.7,2475.6,1.7234018]
[1729938277591,3.2078,2475.7,2475.6,1.7234018]
[1729938279488,3.0109018,2475.9,2475.6,1.7234018]
[1729938279788,3.2078,2475.7,2475.6,1.7234018]
[1729938281489,3.2078,2475.7,2475.6,2.1278018]
[1729938281685,3.2078,2475.7,2475.6,1.7234018]
[1729938283795,3.2078,2475.7,2475.6,5.7626018]
[1729938283995,3.2078,2475.7,2475.6,2.1278018]
[1729938286991,3.2078,2475.7,2475.6,1.7234018]
[1729938287386,3.2078,2475.7,2475.6,2.1278018]
[1729938287587,6.2599518,2476.0,2475.6,2.1278018]
[1729938287787,6.2599518,2476.0,2475.8,1.3145018]
[1729938288799,3.0521518,2476.0,2475.8,1.3145018]
[1729938289691,6.2599518,2476.0,2475.8,1.3145018]
[1729938291395,6.2599518,2476.0,2475.9,1.3145018]
[1729938292396,5.8556018,2476.0,2475.9,1.3145018]
[1729938293297,4.5411,2476.0,2475.9,1.3145018]
[1729938302402,4.5411,2476.0,2475.7,0.8611]
[1729938302403,0.40436,2475.9,2475.7,0.8611]
[1729938302611,6.2599418,2476.0,2475.8,1.3145018]
[1729938303198,6.2599418,2476.0,2475.9,1.3145018]
[1729938303412,5.8556018,2476.0,2475.9,1.3145018]
[1729938303710,6.2599418,2476.0,2475.9,1.3145018]
[1729938304904,5.8556018,2476.0,2475.9,1.3145018]
[1729938305611,6.2599418,2476.0,2475.9,1.3145018]
[1729938307599,6.2599418,2476.0,2475.8,1.3145018]
[1729938308110,5.8556018,2476.0,2475.8,1.3145018]
[1729938308306,0.40435,2475.9,2475.8,1.3145018]
[1729938309206,5.8556018,2476.0,2475.8,1.3145018]
[1729938309414,0.40435,2475.9,2475.8,1.3145018]
[1729938309610,6.2599418,2476.0,2475.8,1.3145018]
[1729938311013,5.8556018,2476.0,2475.8,1.3145018]
[1729938311214,6.2599418,2476.0,2475.8,1.3145018]
[1729938312715,1.3145018,2475.9,2475.7,1.3145018]
[1729938313102,1.7188618,2475.9,2475.7,1.3145018]
[1729938314412,1.3145018,2475.8,2475.1,3.2078]
[1729938314714,1.7189318,2475.5,2475.4,1.3145018]
[1729938315021,0.40444,2475.4,2475.3,1.3145018]
[1729938315215,0.4117,2475.4,2475.3,1.3145018]
[1729938315518,0.81613,2475.4,2475.3,1.3145018]
[1729938316107,0.4117,2475.4,2475.3,1.3145018]
[1729938317308,0.81613,2475.4,2475.3,1.3145018]
[1729938317725,2.1306318,2475.4,2475.3,1.3145018]
[1729938318820,2.1306318,2475.4,2475.2,1.7587018]
[1729938319121,0.847,2475.3,2475.2,1.7587018]
[1729938320523,0.847,2475.3,2475.2,1.3145018]
[1729938320825,2.1615018,2475.3,2474.8,4.68559682]
[1729938321028,2.1615018,2475.3,2474.9,1.3145018]
[1729938321029,4.5223018,2475.1,2474.9,1.3145018]
[1729938321415,0.4071,2475.0,2474.9,1.3145018]
[1729938321815,1.7216018,2475.0,2474.8,0.4191]
[1729938322014,0.8333,2474.9,2474.8,1.7336018]
[1729938322213,1.7216018,2475.0,2474.8,1.7336018]
[1729938322214,3.2078,2475.1,2474.8,1.7336018]
[1729938322415,3.2078,2475.1,2475.0,1.3145018]
[1729938323225,3.4058618,2475.3,2475.0,1.3145018]
[1729938323429,3.0014018,2475.3,2475.0,1.3145018]
[1729938323626,3.0014018,2475.3,2475.1,0.4298]
[1729938323829,3.4058618,2475.3,2475.1,0.4298]
[1729938325026,3.0014018,2475.3,2475.1,0.4298]
[1729938325231,3.4058518,2475.3,2475.1,0.4298]
[1729938326629,3.0014018,2475.3,2475.1,0.4298]
[1729938328030,3.0014018,2475.3,2475.1,1.7443018]
[1729938329433,1.6869,2475.3,2475.2,1.3145018]
[1729938330434,2.09135,2475.3,2475.2,1.3145018]
[1729938330826,1.6869,2475.3,2475.2,1.3145018]
[1729938331332,0.838,2475.3,2475.2,1.3145018]
[1729938332927,4.45024,2475.4,2475.2,1.3145018]
[1729938333825,5.7647418,2475.4,2475.2,1.3145018]
[1729938335134,0.40447,2475.2,2475.1,0.4298]
[1729938335326,0.40447,2475.2,2475.0,1.3145018]
[1729938335327,1.7189718,2475.2,2475.0,1.3145018]
[1729938335526,1.2839,2475.1,2475.0,1.3145018]
[1729938336027,4.4917,2475.1,2475.0,1.3145018]
[1729938336429,4.89619,2475.1,2474.9,0.8698]
[1729938336631,4.4917,2475.1,2475.0,1.3145018]
[1729938337831,4.89618,2475.1,2475.0,1.3145018]
[1729938342537,4.4917,2475.1,2475.0,1.3145018]
[1729938342736,1.2839,2475.1,2475.0,1.3145018]
[1729938342945,4.4917,2475.1,2475.0,1.3145018]
[1729938343236,4.89618,2475.1,2475.0,1.3145018]
[1729938343632,4.4917,2475.1,2475.0,1.3145018]
[1729938346744,1.2839,2475.1,2475.0,1.3145018]
[1729938347036,0.40452,2474.9,2474.8,0.4227]
[1729938347234,0.40452,2474.9,2474.5,0.8449]
[1729938347235,2.1525018,2474.9,2474.5,0.8449]
[1729938347436,1.3145018,2474.6,2474.4,1.7513018]
[1729938347642,1.7190718,2474.6,2474.4,1.7513018]
[1729938347838,1.7190718,2474.6,2474.5,1.3145018]
[1729938348037,0.40458,2474.5,2474.4,0.4368]
[1729938348238,1.7190818,2474.5,2474.4,0.4368]
[1729938348643,1.7190818,2474.5,2474.4,1.7513018]
[1729938349043,1.3145018,2474.5,2474.4,1.7513018]
[1729938349238,4.0718,2474.7,2474.4,1.7513018]
[1729938349445,3.2078,2474.7,2474.6,1.3145018]
[1729938350145,4.5223018,2474.7,2474.6,1.3145018]
[1729938350739,3.2078,2474.7,2474.6,1.3145018]
[1729938350941,3.2078,2474.7,2474.6,1.7190718]
[1729938351649,3.2078,2474.7,2474.6,1.3145018]
[1729938352645,3.2078,2474.7,2474.6,1.7190718]
[1729938352849,3.2078,2474.7,2474.6,1.3145018]
[1729938353749,1.24252,2474.9,2474.6,1.3145018]
[1729938353946,2.5570218,2474.9,2474.8,1.3145018]
[1729938354449,5.3603018,2474.9,2474.8,1.3145018]
[1729938354656,5.7648218,2474.9,2474.8,1.3145018]
[1729938354856,5.3603018,2474.9,2474.8,1.3145018]
[1729938355249,5.7648218,2474.9,2474.8,1.3145018]
[1729938355658,5.3603018,2474.9,2474.8,1.3145018]
[1729938356158,4.0458,2474.9,2474.8,1.3145018]
[1729938357054,4.45032,2474.9,2474.8,1.3145018]
[1729938358155,5.3603018,2474.9,2474.7,1.3145018]
[1729938358359,0.40453,2474.8,2474.7,1.3145018]
[1729938359059,5.7648218,2474.9,2474.7,1.3145018]
[1729938360360,0.40453,2474.8,2474.7,1.3145018]
[1729938360963,3.61233,2474.8,2474.7,1.3145018]
[1729938361262,0.40455,2474.7,2474.5,0.833]
[1729938361463,1.3145018,2474.7,2474.5,2.1475018]
[1729938363570,0.40456,2474.7,2474.6,1.3145018]
[1729938363866,3.2078,2474.8,2474.6,1.3145018]
[1729938364170,3.2078,2474.8,2474.7,1.3145018]
[1729938364468,3.61233,2474.8,2474.7,1.3145018]
[1729938364868,3.2078,2474.8,2474.7,1.3145018]
[1729938368170,3.2078,2474.8,2474.7,1.7257018]
[1729938373875,0.40452,2474.9,2474.7,1.7257018]
[1729938374079,0.83492,2474.9,2474.7,1.7257018]
[1729938375976,0.4304,2474.9,2474.8,1.3145018]
[1729938376978,0.4304,2474.9,2474.8,1.7493018]
[1729938383680,0.83492,2474.9,2474.8,1.7493018]
[1729938384592,0.83492,2474.9,2474.8,1.3145018]
[1729938386592,0.4304,2474.9,2474.8,1.3145018]
[1729938386799,0.83492,2474.9,2474.8,1.3145018]
[1729938389192,0.4304,2474.9,2474.8,1.3145018]
[1729938403502,0.4304,2474.9,2474.8,2.1914018]
[1729938408413,0.4304,2474.9,2474.8,1.3145018]
[1729938409315,1.7449018,2474.9,2474.8,1.3145018]
[1729938409704,0.40455,2474.8,2474.6,1.05799682]
[1729938409910,0.40455,2474.8,2474.5,2.90149704]
[1729938409911,1.3145018,2474.7,2474.5,2.80819862]
[1729938410106,0.4103,2474.6,2474.5,2.80819862]
[1729938410303,2.1293718,2474.6,2474.5,0.12651012]
[1729938410611,2.1293718,2474.6,2474.4,1.3145018]
[1729938410808,1.7248018,2474.6,2474.4,1.3145018]
[1729938411010,1.7190818,2474.5,2474.3,1.7502018]
[1729938411209,0.4427,2474.4,2474.3,1.7502018]
[1729938411405,0.868,2474.4,2474.3,1.7502018]
[1729938411810,2.1293718,2474.6,2474.3,1.7502018]
[1729938412007,2.9973718,2474.6,2474.4,1.3145018]
[1729938413217,3.8343718,2474.6,2474.4,1.3145018]
[1729938414321,7.0421718,2474.6,2474.4,1.3145018]
[1729938415420,1.3145018,2474.5,2474.4,1.3145018]
[1729938415724,1.3145018,2474.5,2474.3,2.1576018]
[1729938416419,4.5223018,2474.5,2474.3,2.1576018]
[1729938416615,4.9268818,2474.5,2474.3,2.1576018]
[1729938416925,4.5223018,2474.5,2474.3,2.1576018]
[1729938418315,4.5223018,2474.5,2474.4,1.3145018]
[1729938422328,4.5223018,2474.5,2474.3,0.4357]
[1729938422329,4.5223018,2474.5,2474.3,1.7502018]
[1729938424523,3.2078,2474.5,2474.4,1.3145018]
[1729938427031,3.2078,2474.5,2474.3,1.7502018]
[1729938427221,4.9268918,2474.5,2474.3,1.7502018]
[1729938427826,4.5223018,2474.5,2474.3,1.7502018]
[1729938433343,3.2078,2474.5,2474.3,1.7502018]
[1729938435843,7.0421718,2474.6,2474.3,1.7502018]
[1729938436439,3.8343718,2474.6,2474.4,1.3145018]
[1729938436649,3.2078,2474.5,2474.4,1.3145018]
[1729938440443,4.5223018,2474.5,2474.3,1.7502018]
[1729938442249,4.9268818,2474.5,2474.3,1.7502018]
[1729938442840,4.5223018,2474.5,2474.3,1.7502018]
[1729938444456,4.9268818,2474.5,2474.3,1.7502018]
[1729938444647,1.3145018,2474.4,2474.0,0.4398]
[1729938444848,4.5223018,2474.2,2474.0,1.7291018]
[1729938445547,4.5223018,2474.2,2474.0,2.1337618]
[1729938446952,1.3145018,2474.2,2474.0,2.1337618]
[1729938447152,1.3145018,2474.2,2474.1,1.7191518]
[1729938447153,3.2078,2474.2,2474.1,1.7191518]
[1729938448449,3.2078,2474.5,2474.1,1.3145018]
[1729938448649,3.2078,2474.5,2474.0,0.8247]
[1729938448650,3.2078,2474.5,2474.4,1.3145018]
[1729938449452,4.5223018,2474.5,2474.4,1.3145018]
[1729938457155,4.5223018,2474.5,2474.1,1.4641555]
[1729938457359,1.3145018,2474.4,2474.2,1.3145018]
[1729938457556,1.3145018,2474.4,2474.2,1.7280018]
[1729938459158,3.61239,2474.5,2474.0,2.7841173]
[1729938459159,1.3145018,2474.3,2474.0,2.7841173]
[1729938459465,1.3145018,2474.1,2473.9,3.2121173]
[1729938459776,1.3145018,2474.0,2473.9,0.4231]
[1729938459962,1.7545018,2474.0,2473.9,0.4231]
[1729938460263,2.1591618,2474.0,2473.7,1.3145018]
[1729938460472,1.7634018,2473.9,2473.8,1.3145018]
[1729938461366,4.9712018,2473.9,2473.7,1.7376018]
[1729938461568,1.7354018,2473.8,2473.7,1.7376018]
[1729938463565,1.7354018,2473.8,2473.4,1.0595155]
[1729938463759,1.3145018,2473.7,2473.5,1.3145018]
[1729938464166,1.3145018,2473.7,2473.6,1.7271018]
[1729938471070,2.5724018,2473.8,2473.6,2.1318318]
[1729938471366,0.4209,2473.8,2473.7,1.3145018]
[1729938471575,3.2078,2473.9,2473.8,0.4047]
[1729938471769,3.2078,2473.9,2473.8,1.7192018]
[1729938473669,3.2078,2473.9,2473.8,1.3145018]
[1729938474078,4.5223018,2473.9,2473.8,1.3145018]
[1729938477382,4.5223018,2473.9,2473.7,1.3145018]
[1729938477586,1.3145018,2473.8,2473.7,1.3145018]
[1729938478178,1.7403018,2473.8,2473.7,1.3145018]
[1729938478385,2.1707018,2473.8,2473.7,1.3145018]
[1729938479979,2.5754018,2473.8,2473.7,1.3145018]
[1729938480374,2.5754018,2473.8,2473.6,1.7271018]
[1729938480578,2.1707018,2473.8,2473.6,1.7271018]
[1729938480781,2.1707018,2473.8,2473.7,1.3145018]
[1729938480981,1.7403018,2473.8,2473.7,1.3145018]
[1729938483889,1.3145018,2473.8,2473.7,1.3145018]
[1729938484990,2.1515018,2473.8,2473.7,1.3145018]
[1729938486990,0.837,2473.8,2473.7,1.3145018]
[1729938487591,2.1515018,2473.8,2473.7,1.3145018]
[1729938490089,2.1515018,2473.8,2473.6,0.81733]
[1729938490390,2.1515018,2473.8,2473.6,0.4126]
[1729938490689,2.1515018,2473.8,2473.6,0.81733]
[1729938492489,2.1515018,2473.8,2473.6,0.4126]
[1729938493595,2.1515018,2473.8,2473.6,0.81733]
[1729938494697,2.1515018,2473.8,2473.6,2.1318318]
[1729938496193,2.1515018,2473.8,2473.6,1.7271018]
[1729938496790,2.1515018,2473.8,2473.6,2.1318318]
[1729938505398,2.1515018,2473.8,2473.6,3.1913473]
[1729938505990,2.1515018,2473.8,2473.6,1.7271018]
[1729938506288,2.5961018,2473.8,2473.6,2.7866173]
[1729938506492,2.5961018,2473.8,2473.6,3.1913473]
[1729938512295,2.5961018,2473.8,2473.6,2.7866173]
[1729938512597,1.7591018,2473.8,2473.6,3.1913473]
[1729938513992,1.7591018,2473.8,2473.6,2.7866173]
[1729938514394,1.7591018,2473.8,2473.6,3.1913373]
[1729938515291,1.7591018,2473.8,2473.6,2.7866173]
[1729938516400,0.8826,2473.7,2473.6,2.7866173]
[1729938516600,0.8826,2473.7,2473.6,2.91317551]
[1729938517699,2.1971018,2473.7,2473.6,1.18607371]
[1729938518604,2.1971018,2473.7,2473.6,1.59080371]
[1729938519897,1.7527018,2473.7,2473.6,1.59080371]
[1729938520098,0.4382,2473.7,2473.6,1.59080371]
[1729938520598,0.4446,2473.8,2473.6,2.50057551]
[1729938520902,5.3593018,2473.9,2473.7,0.53126821]